bitfinex/quotes_SOLUSD_20260308
["timestamp","ask_amount","ask_price","bid_price","bid_amount"]
[1772929434860,4.15558393,83.27,83.221,12.51619783]
[1772929435060,4.15558393,83.27,83.222,0.5]
[1772929435261,0.28432314,83.268,83.224,0.5]
[1772929440383,0.28432314,83.266,83.226,0.5]
[1772929442066,4.15558393,83.25,83.22,1e-08]
[1772929442389,42.04254705,83.249,83.221,0.5]
[1772929442681,12.0121563,83.249,83.221,0.5]
[1772929443183,42.04254705,83.249,83.221,0.5]
[1772929444772,30.03039075,83.249,83.221,0.5]
[1772929451085,12.01085781,83.258,83.223,0.5]
[1772929453498,0.28432314,83.267,83.225,0.5]
[1772929454789,0.28432314,83.265,83.227,0.5]
[1772929458274,0.28432314,83.263,83.229,0.5]
[1772929461192,0.28432314,83.261,83.229,0.5]
[1772929463791,12.0105693,83.26,83.229,0.5]
[1772929464174,42.03699255,83.26,83.229,0.5]
[1772929468399,12.0105693,83.26,83.231,0.5]
[1772929470197,12.0105693,83.26,83.233,0.5]
[1772929472381,46.19261008,83.26,83.228,0.5]
[1772929472596,42.03699255,83.26,83.228,0.5]
[1772929476606,42.03699255,83.26,83.222,0.5]
[1772929478304,4.15561753,83.25,83.22,1e-08]
[1772929478483,0.28432314,83.249,83.22,1e-08]
[1772929480508,4.15561753,83.24,83.21,1e-08]
[1772929483706,0.28432314,83.238,83.21,1e-08]
[1772929487108,0.28432314,83.236,83.21,1e-08]
[1772929489797,12.01417672,83.235,83.21,1e-08]
[1772929490003,0.28432314,83.234,83.211,0.5]
[1772929493306,0.14216157,83.247,83.211,0.5]
[1772929496327,4.15561753,83.24,83.211,0.5]
[1772929498399,0.28432314,83.238,83.211,0.5]
[1772929501014,12.01388805,83.237,83.211,0.5]
[1772929501518,30.3150034,83.249,83.21,1e-08]
[1772929501519,12.01230059,83.248,83.213,0.5]
[1772929503899,0.28432314,83.257,83.215,0.5]
[1772929514034,4.15561753,83.26,83.217,0.5]
[1772929514035,0.28432314,83.255,83.217,0.5]
[1772929516662,0.28432314,83.253,83.217,0.5]
[1772929516929,0.28432314,83.253,83.219,0.5]
[1772929521332,0.28432314,83.251,83.219,0.5]
[1772929521831,0.28432314,83.251,83.22,12.01634222]
[1772929522129,0.28432314,83.251,83.221,0.5]
[1772929524131,12.01201201,83.25,83.221,0.5]
[1772929528930,42.04204204,83.25,83.221,0.5]
[1772929535829,42.04204204,83.25,83.222,0.5]
[1772929536025,12.01201201,83.25,83.222,0.5]
[1772929540350,42.04204204,83.25,83.222,0.5]
[1772929541337,46.19903417,83.25,83.21,1e-08]
[1772929541740,46.19903417,83.25,83.212,0.5]
[1772929542448,42.04204204,83.25,83.212,0.5]
[1772929543449,42.04204204,83.25,83.213,0.5]
[1772929544749,4.15699213,83.24,83.21,1e-08]
[1772929545049,0.28432314,83.239,83.21,1e-08]
[1772929545454,0.28432314,83.237,83.21,1e-08]
[1772929545941,0.28432314,83.237,83.201,0.5]
[1772929546157,4.15699213,83.23,83.201,0.5]
[1772929546345,4.15699213,83.23,83.191,0.5]
[1772929549255,0.28432314,83.228,83.191,0.5]
[1772929551457,0.28432314,83.226,83.191,0.5]
[1772929554244,0.28432314,83.224,83.191,0.5]
[1772929557247,0.28432314,83.222,83.191,0.5]
[1772929560256,0.28432314,83.22,83.191,0.5]
[1772929561161,4.44131527,83.22,83.187,0.5]
[1772929561536,4.44131527,83.22,83.19,0.7]
[1772929561737,4.44131527,83.22,83.191,0.5]
[1772929562951,0.28432314,83.218,83.191,0.5]
[1772929564463,0.28432314,83.218,83.181,0.5]
[1772929566344,0.28432314,83.216,83.181,0.5]
[1772929567760,0.28432314,83.214,83.181,0.5]
[1772929567964,4.15699213,83.21,83.18,0.2]
[1772929568170,4.15699213,83.21,83.181,0.5]
[1772929568468,0.28432314,83.212,83.181,0.5]
[1772929568965,4.15699213,83.21,83.18,0.50000001]
[1772929570250,0.28432314,83.208,83.18,1e-08]
[1772929570454,0.28432314,83.208,83.165,0.5]
[1772929571456,4.15699213,83.2,83.165,0.5]
[1772929571651,0.28432314,83.208,83.165,0.5]
[1772929571975,0.28432314,83.208,83.166,0.5]
[1772929575974,0.28432314,83.206,83.168,0.5]
[1772929579061,0.28432314,83.204,83.168,0.5]
[1772929579373,0.28432314,83.199,83.168,0.5]
[1772929580863,0.28432314,83.197,83.168,0.5]
[1772929583777,12.01980864,83.196,83.168,0.5]
[1772929583974,0.28432314,83.195,83.168,0.5]
[1772929584980,0.14216157,83.195,83.168,0.5]
[1772929585160,42.06275763,83.209,83.168,0.5]
[1772929585480,0.14216157,83.208,83.168,0.5]
[1772929589373,0.14216157,83.208,83.155,30.06410189]
[1772929589374,0.28432314,83.208,83.17,0.5]
[1772929593489,0.28432314,83.206,83.172,0.5]
[1772929594274,0.28432314,83.199,83.172,0.5]
[1772929595295,4.1614302,83.19,83.145,0.5]
[1772929595483,0.28432314,83.189,83.157,0.5]
[1772929595669,0.28432314,83.189,83.152,0.5]
[1772929595990,42.06831893,83.198,83.113,6.2764417]
[1772929595991,0.48141853,83.168,83.113,30.07925007]
[1772929597869,0.48141853,83.165,83.13,12.22923781]
[1772929598075,0.48141853,83.165,83.143,0.46336133]
[1772929601192,0.48141853,83.165,83.13,0.2]
[1772929601193,0.48141853,83.195,83.144,0.46336133]
[1772929601383,0.48141853,83.193,83.144,0.46336133]
[1772929601571,0.48141853,83.192,83.144,0.46336133]
[1772929602795,0.76574167,83.189,83.144,0.46336133]
[1772929602969,0.76574167,83.189,83.145,12.02718143]
[1772929603174,0.76574167,83.189,83.146,0.46336133]
[1772929603486,0.48141853,83.188,83.146,0.46336133]
[1772929605396,0.48141853,83.185,83.148,0.46336133]
[1772929607499,0.48141853,83.195,83.15,0.46336133]
[1772929607797,0.48141853,83.198,83.15,0.46336133]
[1772929607974,0.28432314,83.193,83.15,0.46336133]
[1772929608173,0.76574167,83.193,83.15,0.46336133]
[1772929608390,0.48141853,83.192,83.15,0.46336133]
[1772929608593,0.48141853,83.192,83.149,42.09310995]
[1772929608594,0.28432314,83.19,83.152,0.46336133]
[1772929608783,0.48141853,83.189,83.152,0.46336133]
[1772929611091,12.02096456,83.188,83.153,12.02602431]
[1772929611297,12.02096456,83.188,83.154,0.46336133]
[1772929613598,0.48141853,83.188,83.156,0.46336133]
[1772929614226,0.48141853,83.193,83.156,0.46336133]
[1772929614402,0.28432314,83.202,83.156,0.46336133]
[1772929616895,62.0,83.209,83.158,0.46336133]
[1772929617102,12.01794281,83.209,83.158,0.46336133]
[1772929617687,12.49936134,83.209,83.158,0.46336133]
[1772929617889,0.48141853,83.208,83.158,0.46336133]
[1772929619906,0.48141853,83.206,83.16,0.46336133]
[1772929621890,0.48134104,83.203,83.162,0.49640501]
[1772929622910,12.0185085,83.205,83.162,0.49640501]
[1772929623410,12.49189737,83.205,83.162,0.49640501]
[1772929625491,0.47338887,83.204,83.164,0.4859748]
[1772929627996,12.01879739,83.203,83.165,42.08501171]
[1772929628198,0.47338887,83.202,83.166,0.4859748]
[1772929630419,0.75771201,83.2,83.168,0.4859748]
[1772929630619,0.47338887,83.199,83.168,0.4859748]
[1772929635313,12.01951969,83.198,83.169,12.02371075]
[1772929635518,12.01951969,83.198,83.17,0.4859748]
[1772929635722,0.47338887,83.209,83.17,0.4859748]
[1772929638422,12.49146405,83.208,83.172,0.4859748]
[1772929640126,12.49146405,83.208,83.174,0.4859748]
[1772929640325,0.47338887,83.207,83.174,0.4859748]
[1772929641343,12.01836406,83.206,83.175,12.0228434]
[1772929641534,12.49175293,83.206,83.176,0.4859748]
[1772929641839,0.47338887,83.205,83.176,0.4859748]
[1772929645139,4.15979626,83.22,83.154,60.12924077]
[1772929645140,0.47338887,83.216,83.178,0.4859748]
[1772929645540,0.47338887,83.215,83.178,0.4859748]
[1772929646842,0.47338887,83.212,83.18,0.4859748]
[1772929649153,0.47338887,83.209,83.18,0.4859748]
[1772929650345,0.47338887,83.209,83.182,0.4859748]
[1772929651344,0.47338887,83.207,83.182,0.4859748]
[1772929653336,12.01836406,83.206,83.182,0.4859748]
[1772929653653,0.45457828,83.205,83.182,0.4859748]
[1772929654550,0.45457828,83.204,83.156,0.47526303]
[1772929659441,0.45457828,83.201,83.158,0.47526303]
[1772929662251,0.45457828,83.199,83.16,0.47526303]
[1772929664055,0.45457828,83.203,83.16,0.47526303]
[1772929664247,0.45457828,83.2,83.162,0.47526303]
[1772929665457,12.47395351,83.199,83.164,0.47526303]
[1772929667062,0.45457828,83.198,83.164,0.47526303]
[1772929668459,12.47424245,83.197,83.166,0.47526303]
[1772929669158,0.45457828,83.196,83.166,0.47526303]
[1772929671363,0.45457828,83.196,83.167,12.0239999]
[1772929671568,0.45457828,83.196,83.168,0.47526303]
[1772929672465,0.45457828,83.219,83.171,0.47526303]
[1772929672763,0.45457828,83.216,83.171,0.47526303]
[1772929672945,0.45457828,83.215,83.171,0.47526303]
[1772929673743,0.45457828,83.208,83.171,0.47526303]
[1772929675167,0.45457828,83.205,83.166,0.47526303]
[1772929675548,0.45457828,83.198,83.166,0.47526303]
[1772929677567,0.45457828,83.195,83.166,0.47526303]
[1772929680671,0.73890142,83.193,83.166,0.47526303]
[1772929680871,0.45457828,83.192,83.166,0.47526303]
[1772929683168,0.47314384,83.19,83.166,0.47526303]
[1772929683375,0.47314384,83.189,83.166,0.47526303]
[1772929686376,0.47314384,83.187,83.166,0.47526303]
[1772929687771,0.47314384,83.187,83.167,0.49111072]
[1772929694773,0.47314384,83.185,83.167,0.49111072]
[1772929695889,0.47314384,83.184,83.15,0.49111072]
[1772929698487,0.75746698,83.182,83.152,0.49111072]
[1772929698680,0.47314384,83.181,83.152,0.49111072]
[1772929701372,12.0221207,83.18,83.152,0.49111072]
[1772929701586,0.47314384,83.179,83.152,0.49111072]
[1772929703183,12.02240977,83.178,83.152,0.49111072]
[1772929703371,0.47314384,83.177,83.152,0.49111072]
[1772929704380,12.02269885,83.176,83.152,0.49111072]
[1772929704586,0.47314384,83.175,83.152,0.49111072]
[1772929708789,0.47314384,83.175,83.153,12.02602431]
[1772929708993,0.14216157,83.18,83.154,0.49111072]
[1772929709206,0.28432314,83.18,83.154,0.49111072]
[1772929709799,0.28432314,83.18,83.156,0.49111072]
[1772929713094,0.76118887,83.18,83.158,0.4732031]
[1772929714592,12.02226523,83.179,83.158,0.4732031]
[1772929719582,0.47686573,83.179,83.158,0.4732031]
[1772929722388,12.49913299,83.179,83.158,0.4732031]
[1772929724397,0.47686573,83.178,83.158,0.4732031]
[1772929736822,0.47686573,83.2,83.16,0.4732031]
[1772929737021,0.6190273,83.196,83.16,0.4732031]
[1772929737219,0.47686573,83.195,83.16,0.4732031]
[1772929737801,0.28432314,83.196,83.161,12.02486742]
[1772929737802,0.47686573,83.192,83.161,12.02486742]
[1772929738004,0.28432314,83.19,83.162,0.4732031]
[1772929738720,0.76118887,83.19,83.162,0.4732031]
[1772929739599,0.47686573,83.189,83.162,0.4732031]
[1772929740423,0.47686573,83.189,83.163,12.02457823]
[1772929740612,0.47686573,83.189,83.164,0.4732031]
[1772929742607,0.28432314,83.19,83.165,12.02428906]
[1772929742829,0.28432314,83.19,83.166,0.47890837]
[1772929743324,12.02082006,83.189,83.166,0.47890837]
[1772929744822,12.50604733,83.199,83.168,0.47890837]
[1772929745521,12.01951139,83.199,83.168,0.47890837]
[1772929745722,12.01980864,83.196,83.168,0.47890837]
[1772929745914,0.48653594,83.195,83.168,0.47890837]
[1772929747522,0.48653594,83.193,83.168,0.47890837]
[1772929747922,0.48653594,83.193,83.17,0.47890837]
[1772929751324,0.48653594,83.191,83.17,0.47890837]
[1772929753228,0.48653594,83.189,83.17,0.47890837]
[1772929753622,12.02067556,83.19,83.17,0.47890837]
[1772929753931,0.48653594,83.192,83.172,0.47890837]
[1772929755217,0.48653594,83.192,83.157,30.06347316]
[1772929755218,0.48653594,83.207,83.174,0.47890837]
[1772929757236,0.48653594,83.205,83.176,0.47890837]
[1772929760621,0.48653594,83.203,83.176,0.47890837]
[1772929763438,0.48653594,83.201,83.176,0.47890837]
[1772929764443,12.01923076,83.2,83.176,0.47890837]
[1772929765338,12.01923076,83.2,83.177,12.02255431]
[1772929765543,12.01923076,83.2,83.178,0.47890837]
[1772929768952,12.5057667,83.2,83.178,0.47890837]
[1772929769247,0.48653594,83.199,83.178,0.47890837]
[1772929770650,12.01951969,83.198,83.178,0.47890837]
[1772929775452,0.45918425,83.198,83.178,0.47890837]
[1772929776459,12.01966417,83.197,83.178,0.47890837]
[1772929776753,12.47884842,83.197,83.178,0.47890837]
[1772929780751,0.45918425,83.196,83.178,0.47890837]
[1772929782456,12.01995312,83.195,83.178,0.47890837]
[1772929783549,12.47913737,83.195,83.178,0.47890837]
[1772929784360,0.45918425,83.194,83.178,0.47890837]
[1772929784757,0.74350739,83.207,83.178,0.47890837]
[1772929784958,0.45918425,83.206,83.178,0.47890837]
[1772929787250,0.45918425,83.203,83.15,3.69383402]
[1772929789250,0.74350739,83.201,83.153,0.45639315]
[1772929789450,0.45918425,83.2,83.153,0.45639315]
[1772929791458,0.45918425,83.198,83.155,0.45639315]
[1772929794546,0.45918425,83.196,83.157,0.45639315]
[1772929795742,0.45918425,83.195,83.157,0.45639315]
[1772929796663,0.74350739,83.193,83.157,0.45639315]
[1772929796854,0.45918425,83.192,83.157,0.45639315]
[1772929797369,0.45918425,83.192,83.159,0.45639315]
[1772929800162,0.28432314,83.19,83.159,0.45639315]
[1772929800362,0.45918425,83.199,83.161,0.45639315]
[1772929802573,0.49289862,83.197,83.163,0.46413759]
[1772929806075,12.01980864,83.196,83.165,0.46413759]
[1772929809083,0.49289862,83.196,83.167,0.46413759]
[1772929810289,12.01764189,83.211,83.167,0.46413759]
[1772929810982,12.51054051,83.211,83.167,0.46413759]
[1772929811475,12.51054051,83.211,83.154,0.28432314]
[1772929811476,12.51054051,83.211,83.169,0.46413759]
[1772929812265,0.49289862,83.21,83.169,0.46413759]
[1772929813872,12.51082937,83.209,83.171,0.46413759]
[1772929815085,0.49289862,83.208,83.171,0.46413759]
[1772929818681,0.49289862,83.208,83.173,0.46413759]
[1772929819479,0.49289862,83.224,83.174,0.46413759]
[1772929819679,0.49289862,83.223,83.174,0.46413759]
[1772929820775,0.49289862,83.223,83.177,0.46413759]
[1772929820975,12.01605344,83.222,83.177,0.46413759]
[1772929821290,0.49289862,83.221,83.177,0.46413759]
[1772929822797,0.49289862,83.219,83.179,0.46413759]
[1772929827488,0.49289862,83.217,83.181,0.46413759]
[1772929830606,0.49289862,83.217,83.183,0.46413759]
[1772929832291,0.49289862,83.217,83.185,0.46243191]
[1772929834198,0.49810861,83.215,83.185,0.46243191]
[1772929839209,0.49810861,83.215,83.187,0.46243191]
[1772929842512,0.49810861,83.215,83.188,12.02096456]
[1772929842816,0.49810861,83.215,83.189,0.46243191]
[1772929844211,0.49810861,83.221,83.191,0.46243191]
[1772929848012,0.49810861,83.219,83.193,0.46243191]
[1772929848415,0.49810861,83.219,83.189,0.46243191]
[1772929849104,0.49810861,83.219,83.181,12.02197617]
[1772929849415,0.49810861,83.219,83.182,0.46243191]
[1772929851518,0.49810861,83.217,83.183,12.02168712]
[1772929851724,0.49810861,83.217,83.184,0.46243191]
[1772929854724,0.49810861,83.215,83.186,0.46243191]
[1772929857624,0.49810861,83.213,83.145,12.02718143]
[1772929857832,0.49810861,83.213,83.15,30.06614552]
[1772929858012,0.49810861,83.213,83.151,0.28432314]
[1772929859031,0.49810861,83.213,83.151,0.14216157]
[1772929859327,0.49810861,83.213,83.151,0.28432314]
[1772929859529,0.49810861,83.211,83.154,0.46243191]
[1772929859905,0.49810861,83.209,83.154,0.46243191]
[1772929860116,0.49810861,83.208,83.154,0.46243191]
[1772929863528,0.28432314,83.206,83.155,12.02573507]
[1772929863712,0.45477066,83.205,83.156,0.46052544]
[1772929865724,0.45477066,83.202,83.158,0.46052544]
[1772929866035,0.45477066,83.202,83.157,12.02544584]
[1772929866834,0.45477066,83.202,83.157,12.48597128]
[1772929867017,0.45477066,83.198,83.157,12.48597128]
[1772929867431,0.45477066,83.198,83.157,0.46052544]
[1772929868328,0.45477066,83.195,83.157,0.46052544]
[1772929877022,0.45477066,83.195,83.144,30.06828427]
[1772929877023,0.45477066,83.193,83.159,0.46052544]
[1772929884643,0.45477066,83.191,83.161,0.46052544]
[1772929886639,0.45477066,83.189,83.163,0.46052544]
[1772929890550,0.45477066,83.189,83.164,12.02443364]
[1772929890848,0.45477066,83.189,83.165,0.46052544]
[1772929893726,0.45477066,83.189,83.164,12.02443364]
[1772929893727,0.45477066,83.189,83.167,0.49158395]
[1772929894427,12.02096456,83.188,83.167,0.49158395]
[1772929894628,0.47597339,83.187,83.163,0.49158395]
[1772929895956,0.47597339,83.187,83.164,12.02443364]
[1772929896136,0.47597339,83.185,83.165,0.49158395]
[1772929897331,0.47597339,83.185,83.161,0.49158395]
[1772929899328,30.05003257,83.195,83.142,0.15918291]
[1772929899329,0.47597339,83.183,83.152,0.49158395]
[1772929899645,0.47597339,83.183,83.147,0.49158395]
[1772929899851,0.47597339,83.182,83.142,0.15918291]
[1772929900047,0.47597339,83.178,83.127,0.49158395]
[1772929900949,0.47597339,83.178,83.13,0.69158395]
[1772929901252,0.47597339,83.178,83.131,0.49158395]
[1772929901842,0.47597339,83.175,83.131,12.52079086]
[1772929902038,0.47597339,83.175,83.132,0.49158395]
[1772929904150,0.47597339,83.172,83.133,0.49158395]
[1772929907558,0.76029653,83.17,83.133,0.49158395]
[1772929907753,0.47597339,83.169,83.134,12.02877282]
[1772929907962,0.47597339,83.169,83.135,0.49158395]
[1772929909856,0.47597339,83.166,83.135,0.49158395]
[1772929910763,0.47597339,83.166,82.988,46.86572474]
[1772929910764,0.47597339,83.148,83.101,0.49158395]
[1772929910966,102.20277028,83.168,83.101,0.49158395]
[1772929910967,0.47597339,83.139,83.101,0.49158395]
[1772929911170,0.47597339,83.139,83.101,12.03354953]
[1772929911476,0.47597339,83.138,83.102,0.49158395]
[1772929911973,0.47597339,83.135,83.102,0.49158395]
[1772929913173,0.61813496,83.133,83.102,0.49158395]
[1772929913346,0.47597339,83.132,83.102,0.49158395]
[1772929914665,0.47597339,83.13,83.102,0.49158395]
[1772929918456,0.47597339,83.128,83.099,12.03374759]
[1772929918654,0.47597339,83.128,83.1,0.69158395]
[1772929920666,0.47597339,83.126,83.101,0.49158395]
[1772929923078,12.49508465,83.135,83.102,0.45764827]
[1772929923258,0.46645652,83.134,83.102,0.45764827]
[1772929925666,0.46645652,83.132,83.102,0.45764827]
[1772929926060,0.46645652,83.132,83.1,0.2]
[1772929926486,4.16059196,83.13,83.1,0.2]
[1772929926668,0.46645652,83.129,83.1,0.2]
[1772929927275,0.46645652,83.129,83.1,0.65764827]
[1772929928769,0.46645652,83.127,83.101,0.45764827]
[1772929929883,0.46645652,83.127,83.1,0.2]
[1772929929884,0.46645652,83.126,83.1,0.2]
[1772929930187,0.46645652,83.126,83.09,0.2]
[1772929930370,102.25194878,83.128,83.077,0.45764827]
[1772929930371,0.46645652,83.108,83.077,0.45764827]
[1772929930762,0.46645652,83.105,83.077,0.45764827]
[1772929932360,0.46645652,83.102,83.077,0.45764827]
[1772929933161,30.0817019,83.107,83.042,3.95357222]
[1772929933162,12.0323947,83.109,83.081,0.45764827]
[1772929933372,0.46645652,83.108,83.081,0.45764827]
[1772929934777,0.46645652,83.106,83.081,0.45764827]
[1772929935161,0.46645652,83.106,83.083,0.45764827]
[1772929938390,0.46645652,83.114,83.085,0.45764827]
[1772929939583,0.46645652,83.112,83.087,0.45764827]
[1772929941678,0.46645652,83.11,83.089,0.45764827]
[1772929942984,12.4979801,83.115,83.089,0.45764827]
[1772929943182,12.03152358,83.115,83.089,0.45764827]
[1772929943689,12.03152358,83.115,83.09,12.03514261]
[1772929943990,12.03152358,83.115,83.091,0.45764827]
[1772929944877,30.0752081,83.125,83.091,0.45764827]
[1772929944878,0.46645652,83.114,83.091,0.45764827]
[1772929945489,0.46645652,83.114,83.092,0.45764827]
[1772929947390,12.49814799,83.114,83.094,0.45764827]
[1772929948296,0.46645652,83.123,83.094,0.45764827]
[1772929950983,0.46645652,83.121,83.096,0.45764827]
[1772929952080,0.46645652,83.121,83.098,0.45764827]
[1772929954897,0.46645652,83.121,83.1,0.45462851]
[1772929955578,0.49019784,83.119,83.1,0.45462851]
[1772929963001,0.49019784,83.119,83.101,12.03354953]
[1772929963210,0.49019784,83.119,83.102,0.45462851]
[1772929966429,0.49019784,83.117,83.102,0.45462851]
[1772929969814,0.49019784,83.109,83.072,0.45462851]
[1772929970021,0.49019784,83.108,83.072,0.45462851]
[1772929974827,0.49019784,83.105,83.072,0.45462851]
[1772929977811,0.49019784,83.102,83.072,0.45462851]
[1772929978303,0.49019784,83.102,83.073,0.45462851]
[1772929979808,42.11742337,83.101,83.073,0.45462851]
[1772929980013,0.49019784,83.1,83.073,0.45462851]
[1772929981933,0.46198109,83.098,83.074,0.47117026]
[1772929982634,12.03383915,83.099,83.074,0.47117026]
[1772929983910,12.49526567,83.103,83.075,12.03731567]
[1772929984232,0.46194191,83.115,83.076,0.45626118]
[1772929985915,0.46194191,83.113,83.078,0.45626118]
[1772929986920,0.46194191,83.123,83.078,0.45626118]
[1772929987941,0.46194191,83.12,83.08,0.45626118]
[1772929989350,0.46194191,83.109,83.074,12.03734344]
[1772929990327,0.46194191,83.107,83.074,12.49360462]
[1772929992727,0.46194191,83.105,83.074,12.49360462]
[1772929994226,0.46194191,83.103,83.074,12.49360462]
[1772929996719,0.46194191,83.101,83.074,0.45626118]
[1772929998752,0.46194191,83.099,83.074,0.45626118]
[1772930001832,0.46194191,83.097,83.074,0.45626118]
[1772930004460,12.03427361,83.096,83.074,0.45626118]
[1772930004654,0.46194191,83.095,83.074,0.45626118]
[1772930007846,0.46194191,83.093,83.074,0.45626118]
[1772930009742,0.46194191,83.091,83.071,0.45626118]
[1772930016467,0.46194191,83.091,83.073,0.47563715]
[1772930022259,0.4701949,83.089,83.073,0.47563715]
[1772930029861,0.4701949,83.087,83.07,0.2]
[1772930030457,0.4701949,83.087,83.071,0.47563715]
[1772930031156,0.4701949,83.087,83.071,12.51353244]
[1772930031353,12.50507829,83.092,83.072,0.47563715]
[1772930032653,0.28432314,83.112,83.072,0.47563715]
[1772930032654,0.4701949,83.091,83.072,0.47563715]
[1772930036075,0.4701949,83.091,83.073,12.03760547]
[1772930036258,0.4701949,83.091,83.074,0.47563715]
[1772930038478,0.4701949,83.091,83.075,12.03731567]
[1772930038865,0.4701949,83.091,83.076,0.47563715]
[1772930042057,0.46299226,83.095,83.076,0.47563715]
[1772930042751,12.49565673,83.109,83.078,0.46143643]
[1772930042965,0.46326554,83.108,83.078,0.46143643]
[1772930043567,0.46326554,83.125,83.078,0.46143643]
[1772930045577,0.46326554,83.125,83.08,0.46143643]
[1772930047675,0.46326554,83.124,83.082,0.46143643]
[1772930049882,0.46326554,83.124,83.084,0.46143643]
[1772930050375,4.17173698,83.14,83.084,0.46143643]
[1772930050376,0.46326554,83.122,83.084,0.46143643]
[1772930050782,0.46326554,83.119,83.083,12.03615661]
[1772930050984,0.46326554,83.109,83.071,12.49933172]
[1772930051286,0.46326554,83.109,83.072,0.46143643]
[1772930052177,0.46326554,83.107,83.07,0.2]
[1772930052475,0.46326554,83.099,83.071,0.46143643]
[1772930054376,0.46326554,83.097,83.073,0.46143643]
[1772930055387,0.46326554,83.097,83.07,0.2]
[1772930055388,0.46326554,83.097,83.075,0.46143643]
[1772930056278,30.08133994,83.108,83.076,0.46143643]
[1772930057287,0.28432314,83.116,83.078,0.46143643]
[1772930058292,0.46326554,83.115,83.078,0.46143643]
[1772930058986,0.46326554,83.112,83.08,0.46143643]
[1772930061981,0.46326554,83.11,83.082,0.46143643]
[1772930064619,0.46326554,83.108,83.082,0.46143643]
[1772930075604,0.493073,83.106,83.082,0.46143643]
[1772930082095,0.493073,83.104,83.082,0.46143643]
[1772930083108,0.493073,83.102,83.082,0.46143643]
[1772930085110,0.493073,83.113,83.082,0.46143643]
[1772930085301,0.493073,83.113,83.084,0.49353839]
[1772930086787,0.493073,83.111,83.086,0.49353839]
[1772930091113,0.493073,83.109,83.086,0.49353839]
[1772930092917,0.493073,83.109,83.074,30.09346853]
[1772930092918,0.493073,83.109,83.088,0.49353839]
[1772930094821,12.03253597,83.108,83.088,0.49353839]
[1772930096120,12.52560897,83.108,83.088,0.49353839]
[1772930101830,0.45101208,83.107,83.088,0.49353839]
[1772930105727,0.45101208,83.107,83.089,12.03528746]
[1772930105939,12.03262492,83.108,83.09,0.46963619]
[1772930107338,0.48604246,83.107,83.074,30.09346853]
[1772930107520,0.48604246,83.107,83.075,0.46963619]
[1772930108033,0.48604246,83.107,83.07,0.2]
[1772930108034,0.48604246,83.099,83.07,0.2]
[1772930108214,12.03262492,83.108,83.047,0.46963619]
[1772930108215,0.48604246,83.089,83.047,0.46963619]
[1772930111232,0.48604246,83.087,83.049,0.46963619]
[1772930112815,0.48604246,83.085,83.051,0.46963619]
[1772930115837,0.48604246,83.083,83.053,0.46963619]
[1772930117931,0.48604246,83.081,83.055,0.46963619]
[1772930119423,0.48604246,83.079,83.056,12.04006935]
[1772930119625,0.48604246,83.079,83.057,0.46963619]
[1772930121339,0.48604246,83.079,83.047,12.04137108]
[1772930121523,0.48604246,83.077,83.045,0.7362153]
[1772930122623,0.48604246,83.069,83.045,0.7362153]
[1772930124139,0.48604246,83.067,83.045,0.7362153]
[1772930124730,0.48604246,83.066,83.018,0.46963619]
[1772930124928,0.48604246,83.067,83.019,0.46963619]
[1772930125234,0.48604246,83.073,83.02,0.46963619]
[1772930125554,0.48604246,83.083,83.023,0.46963619]
[1772930126247,12.03630148,83.082,83.023,0.46963619]
[1772930126555,0.48604246,83.081,83.029,0.46963619]
[1772930130651,0.48604246,83.079,83.032,0.46963619]
[1772930133851,0.4677453,83.077,83.034,0.49916592]
[1772930135854,12.036881,83.078,83.027,3.69383402]
[1772930135855,0.4677453,83.075,83.036,0.49916592]
[1772930140255,0.4677453,83.073,83.038,0.49916592]
[1772930142866,0.4677453,83.071,83.04,0.49916592]
[1772930148861,0.4677453,83.069,83.042,0.49916592]
[1772930150968,30.09112591,83.081,83.035,30.10778587]
[1772930150969,0.4677453,83.067,83.044,0.49916592]
[1772930154879,0.4677453,83.067,83.045,12.04166415]
[1772930155173,0.4677453,83.067,83.046,0.49916592]
[1772930156152,0.4677453,83.097,83.046,0.49916592]
[1772930156357,0.4677453,83.094,83.046,0.49916592]
[1772930157959,0.4677453,83.091,83.048,0.49916592]
[1772930160954,0.4677453,83.089,83.05,0.49916592]
[1772930162894,0.49334007,83.112,83.054,0.45716187]
[1772930163194,0.49334007,83.112,83.057,0.45716187]
[1772930163894,0.49334007,83.117,83.059,0.45716187]
[1772930164758,0.49334007,83.117,83.061,0.28432314]
[1772930164985,0.49334007,83.117,83.062,0.45716187]
[1772930166781,0.49334007,83.117,83.064,0.45716187]
[1772930167484,0.49334007,83.115,83.064,0.45716187]
[1772930168993,30.07698806,83.121,83.066,0.45716187]
[1772930168994,0.49334007,83.113,83.066,0.45716187]
[1772930170793,0.49334007,83.113,83.067,0.45716187]
[1772930170961,0.49334007,83.113,83.07,0.45716187]
[1772930171976,0.49334007,83.113,83.073,0.45716187]
[1772930173772,0.49334007,83.111,83.073,0.45716187]
[1772930174089,0.49334007,83.111,83.075,0.45716187]